bitfinex/quotes_SOLUSD_20240603
["timestamp","ask_amount","ask_price","bid_price","bid_amount"]
[1717453381314,5.28,165.13,165.09,2.4112]
[1717453381682,7.5205,165.14,165.09,2.4112]
[1717453382119,20.0,165.13,165.09,0.17]
[1717453382496,22.2407,165.13,165.09,0.17]
[1717453384010,2.2407,165.13,165.09,0.17]
[1717453384218,22.2407,165.13,165.09,0.17]
[1717453384427,22.2407,165.13,165.1,6.1167]
[1717453384640,22.2407,165.13,165.11,0.17]
[1717453384933,7.5207,165.13,165.1,6.1167]
[1717453386334,2.2407,165.13,165.1,6.1167]
[1717453387399,2.2407,165.13,165.11,0.17]
[1717453387599,22.2407,165.13,165.11,0.17]
[1717453389908,2.2407,165.12,165.09,0.17]
[1717453390116,7.5207,165.12,165.08,0.34]
[1717453391527,22.2407,165.13,165.08,0.34]
[1717453391727,2.2407,165.13,165.08,0.34]
[1717453392117,7.5207,165.13,165.08,0.34]
[1717453394234,7.5207,165.13,165.08,2.5813]
[1717453395329,2.2407,165.13,165.08,2.5813]
[1717453395534,7.5207,165.13,165.08,2.5813]
[1717453397410,7.5207,165.13,165.08,9.1169]
[1717453397611,22.2405,165.14,165.09,2.2411]
[1717453397822,20.0,165.13,165.1,0.34]
[1717453398709,22.2406,165.13,165.1,0.34]
[1717453398917,22.2406,165.13,165.09,0.34]
[1717453400124,2.2406,165.13,165.09,0.34]
[1717453400328,22.2406,165.13,165.09,0.34]
[1717453402438,27.5206,165.13,165.09,0.34]
[1717453404944,7.5206,165.13,165.09,0.34]
[1717453405937,2.2406,165.13,165.09,0.34]
[1717453406144,7.5205,165.14,165.09,2.5811]
[1717453406645,2.2406,165.13,165.09,0.34]
[1717453406942,22.2406,165.13,165.09,0.34]
[1717453408742,2.2408,165.12,165.09,0.34]
[1717453408946,2.2408,165.12,165.08,0.34]
[1717453410725,27.5207,165.13,165.08,2.5813]
[1717453410922,27.5207,165.13,165.08,0.34]
[1717453411945,27.5207,165.13,165.08,2.5813]
[1717453413037,22.2407,165.13,165.08,2.5813]
[1717453413243,5.28,165.13,165.09,2.2411]
[1717453413729,5.28,165.13,165.1,0.17]
[1717453414146,5.28,165.13,165.09,0.17]
[1717453415541,7.5205,165.14,165.09,2.4111]
[1717453415734,20.0,165.13,165.1,0.17]
[1717453416946,20.0,165.13,165.09,0.34]
[1717453417322,20.0,165.13,165.09,2.5811]
[1717453418054,7.5205,165.14,165.09,2.5811]
[1717453418254,20.0,165.13,165.09,2.5811]
[1717453419155,20.0,165.13,165.09,11.67321957]
[1717453419325,20.0,165.13,165.09,9.43211957]
[1717453419754,22.2407,165.13,165.09,9.43211957]
[1717453421439,22.2407,165.13,165.09,9.43120913]
[1717453422058,20.0,165.13,165.09,18.25640913]
[1717453422354,22.2406,165.13,165.09,16.01530913]
[1717453423451,2.2403,165.15,165.1,2.241]
[1717453423629,7.5203,165.15,165.11,0.34]
[1717453423946,20.0,165.14,165.11,0.34]
[1717453424334,2.2403,165.15,165.11,0.34]
[1717453424534,22.2403,165.15,165.11,0.34]
[1717453425057,2.2405,165.14,165.11,0.34]
[1717453435543,2.2405,165.14,165.1,0.34]
[1717453437175,2.2406,165.13,165.1,0.34]
[1717453438447,2.2406,165.13,165.09,9.09172506]
[1717453438670,7.5206,165.13,165.09,9.09172506]
[1717453438969,7.5206,165.13,165.08,11.33292506]
[1717453439751,7.5206,165.13,165.09,0.34]
[1717453441771,20.0,165.15,165.09,0.34]
[1717453441772,26.7214,165.15,165.09,0.17]
[1717453441962,7.5211,165.1,165.08,9.09192566]
[1717453442277,7.5211,165.1,165.07,9.12960284]
[1717453442577,7.5209,165.11,165.07,9.12960284]
[1717453443165,7.5209,165.11,165.08,0.17]
[1717453444279,5.28,165.11,165.08,0.17]
[1717453447922,7.5209,165.11,165.08,0.17]
[1717453448062,7.5209,165.11,165.07,0.20767718]
[1717453448382,5.28,165.11,165.07,0.20767718]
[1717453448879,5.28,165.11,165.07,2.44907718]
[1717453449252,2.2408,165.12,165.07,2.44907718]
[1717453449455,7.5208,165.12,165.07,2.44907718]
[1717453449686,2.2408,165.12,165.07,7.72907718]
[1717453449853,2.2408,165.12,165.07,16.82100284]
[1717453450054,22.2408,165.12,165.07,16.82100284]
[1717453450482,27.5208,165.12,165.07,2.44907718]
[1717453450778,5.28,165.11,165.07,0.20767718]
[1717453451084,5.28,165.11,165.07,2.44907718]
[1717453451276,5.28,165.11,165.07,0.20767718]
[1717453452495,5.28,165.11,165.07,2.44897718]
[1717453452716,7.5208,165.12,165.07,2.44897718]
[1717453454300,2.2407,165.13,165.07,5.48767718]
[1717453454502,7.5207,165.13,165.08,2.4113]
[1717453454695,20.0,165.12,165.09,0.17]
[1717453454895,2.2408,165.12,165.09,0.17]
[1717453455100,22.2408,165.12,165.09,0.17]
[1717453455305,22.2408,165.12,165.08,0.34]
[1717453461590,7.5207,165.13,165.08,2.5813]
[1717453461797,7.5207,165.13,165.08,0.34]
[1717453461798,22.2408,165.12,165.08,0.34]
[1717453463616,22.2408,165.12,165.08,5.62]
[1717453464926,2.2408,165.12,165.08,5.62]
[1717453469315,20.0,165.13,165.08,5.62]
[1717453469502,2.2408,165.12,165.08,0.34]
[1717453478232,2.2408,165.12,165.08,9.43222817]
[1717453481322,2.2408,165.12,165.08,0.34]
[1717453481528,2.2408,165.12,165.08,9.43202926]
[1717453482726,2.241,165.1,165.08,9.09202926]
[1717453482954,2.2409,165.11,165.08,9.09202926]
[1717453483307,2.2409,165.11,165.07,9.12970644]
[1717453484020,7.5208,165.12,165.07,11.37110644]
[1717453485935,7.5208,165.12,165.07,9.12970644]
[1717453487348,2.2405,165.14,165.09,2.2411]
[1717453487506,7.5204,165.15,165.1,2.581]
[1717453487701,2.2404,165.15,165.1,14.5013]
[1717453487907,2.2404,165.15,165.1,23.59332926]
[1717453489130,22.2404,165.15,165.1,14.5013]
[1717453490339,20.0,165.14,165.1,14.5013]
[1717453490522,2.2404,165.15,165.1,14.5013]
[1717453491036,22.2404,165.15,165.1,14.5013]
[1717453491216,2.2405,165.14,165.1,14.5013]
[1717453491639,2.2405,165.14,165.1,12.2603]
[1717453491830,2.2405,165.14,165.1,6.9803]
[1717453492037,2.2405,165.14,165.1,12.2603]
[1717453493428,2.2405,165.14,165.1,6.9803]
[1717453493627,2.2405,165.14,165.1,12.2603]
[1717453494646,2.2405,165.14,165.11,6.0178]
[1717453494822,2.2405,165.14,165.12,0.17]
[1717453495019,15.6805,165.18,165.12,0.17]
[1717453495020,4.4798,165.19,165.12,0.17]
[1717453495234,2.2401,165.17,165.13,6.0178]
[1717453496138,2.2402,165.16,165.13,6.0178]
[1717453496448,2.2401,165.17,165.13,11.2978]
[1717453497027,2.2402,165.16,165.13,11.2978]
[1717453498652,2.2402,165.16,165.14,0.17]
[1717453499245,2.2402,165.16,165.14,0.34]
[1717453504654,2.2402,165.16,165.14,0.17]
[1717453504946,2.2403,165.15,165.14,0.17]
[1717453505145,2.2403,165.16,165.14,0.17]
[1717453506144,22.2403,165.16,165.14,0.17]
[1717453506343,2.2403,165.16,165.14,0.17]
[1717453506546,22.2403,165.16,165.14,0.17]
[1717453506749,2.2404,165.15,165.1,17.85947092]
[1717453506931,2.2405,165.14,165.1,15.61857092]
[1717453507136,2.2404,165.15,165.1,17.85957092]
[1717453507356,2.2404,165.15,165.1,8.7685]
[1717453507946,20.0,165.17,165.1,8.7685]
[1717453507947,20.0,165.17,165.11,2.2408]
[1717453508258,22.2402,165.16,165.12,0.34]
[1717453510367,7.5201,165.17,165.12,9.1082]
[1717453510836,7.5201,165.17,165.12,6.8675]
[1717453510837,22.2402,165.16,165.12,6.8675]
[1717453512556,22.2402,165.16,165.12,9.1082]
[1717453512859,2.2402,165.16,165.12,9.1082]
[1717453513061,2.2402,165.16,165.12,6.8675]
[1717453513261,2.2402,165.16,165.12,9.1082]
[1717453513443,20.0,165.16,165.12,9.1082]
[1717453513941,22.2402,165.16,165.12,6.8675]
[1717453514739,22.2402,165.16,165.12,9.1082]
[1717453514940,7.5201,165.17,165.12,9.1082]
[1717453515653,22.2402,165.16,165.12,9.1082]
[1717453516246,22.2402,165.16,165.12,6.8675]
[1717453516549,2.2402,165.16,165.12,6.8675]
[1717453517346,22.2402,165.16,165.12,6.8675]
[1717453517757,2.2401,165.17,165.13,11.6091]
[1717453518066,2.2401,165.17,165.12,18.1149]
[1717453518067,8.9581,165.22,165.14,11.7791]
[1717453518355,2.2399,165.19,165.15,0.34]
[1717453519354,22.2399,165.19,165.15,0.34]
[1717453519557,2.2399,165.19,165.15,0.34]
[1717453520268,22.2399,165.19,165.15,0.34]
[1717453520561,2.2399,165.18,165.15,0.34]
[1717453520865,20.0,165.19,165.16,5.28]
[1717453521061,2.2397,165.2,165.15,8.6462]
[1717453521369,2.2398,165.19,165.15,11.686]
[1717453521560,22.2398,165.19,165.15,11.686]
[1717453521759,2.2398,165.19,165.15,11.686]
[1717453522262,2.2398,165.19,165.15,6.406]
[1717453522462,2.24,165.18,165.15,6.406]
[1717453522759,5.28,165.2,165.15,6.406]
[1717453523063,22.2399,165.19,165.15,6.406]
[1717453525247,2.2399,165.19,165.15,6.406]
[1717453525449,2.2399,165.19,165.15,8.6463]
[1717453525661,18.57584886,165.24,165.16,8.2432]
[1717453525870,5.28,165.21,165.17,0.17]
[1717453526045,7.5196,165.21,165.17,0.17]
[1717453526375,2.2397,165.2,165.17,0.17]
[1717453528160,5.28,165.21,165.17,0.17]
[1717453528161,7.5196,165.21,165.17,0.17]
[1717453529245,7.5194,165.22,165.17,6.7864]
[1717453529760,4.4785,165.24,165.17,6.7864]
[1717453529761,2.2392,165.24,165.18,11.7264]
[1717453529963,2.2392,165.24,165.19,5.62]
[1717453530160,7.5192,165.24,165.2,0.17]
[1717453530580,2.2392,165.24,165.2,0.17]
[1717453530873,7.5191,165.25,165.2,0.17]
[1717453531066,2.2391,165.25,165.2,0.17]
[1717453531373,7.5191,165.25,165.2,0.17]
[1717453531569,2.2391,165.24,165.2,7.20323007]
[1717453531769,2.2391,165.24,165.2,12.48323007]
[1717453532274,2.2391,165.24,165.21,1.51986396]
[1717453534354,2.2393,165.23,165.2,6.6164]
[1717453534550,2.2393,165.23,165.2,0.17]
[1717453534776,2.2394,165.22,165.17,2.41]
[1717453534966,2.2394,165.22,165.18,0.17]
[1717453535167,7.5194,165.22,165.18,0.17]
[1717453535474,7.5194,165.22,165.17,7.69]
[1717453535681,7.5194,165.22,165.17,14.2891]
[1717453536774,2.2395,165.21,165.16,2.2401]
[1717453536979,5.28,165.21,165.17,2.4101]
[1717453537272,5.28,165.2,165.17,0.17]
[1717453537475,7.5198,165.2,165.17,0.17]
[1717453537676,7.5198,165.2,165.16,0.17]
[1717453538062,5.28,165.2,165.16,2.4102]
[1717453538869,2.2395,165.21,165.16,2.4102]
[1717453539079,5.28,165.2,165.16,2.4102]
[1717453539264,2.2395,165.21,165.16,2.4102]
[1717453539583,5.28,165.2,165.16,2.4102]
[1717453539787,7.5197,165.2,165.16,0.17]
[1717453540162,5.28,165.19,165.16,0.17]
[1717453541269,5.28,165.19,165.16,2.4102]
[1717453541576,5.28,165.2,165.16,8.5922]
[1717453541753,7.5196,165.21,165.16,8.5922]
[1717453543686,5.28,165.2,165.16,0.17]
[1717453543871,7.5197,165.2,165.16,0.17]
[1717453544774,5.28,165.2,165.16,2.4102]
[1717453548488,7.5197,165.2,165.16,0.17]
[1717453548677,5.28,165.19,165.16,2.2402]
[1717453551771,5.28,165.19,165.15,2.2403]
[1717453553094,5.28,165.19,165.15,8.3232]
[1717453553467,2.2397,165.2,165.15,8.3232]
[1717453553669,7.5197,165.2,165.15,8.3232]
[1717453554166,2.2396,165.21,165.16,2.2402]
[1717453554400,5.28,165.2,165.16,2.2402]
[1717453554609,2.2396,165.21,165.16,2.2402]
[1717453554812,5.28,165.2,165.16,2.2402]
[1717453557579,7.5197,165.2,165.15,8.3232]
[1717453560903,2.2397,165.2,165.15,8.3232]
[1717453561105,7.5197,165.2,165.16,2.2402]
[1717453561277,2.2396,165.21,165.16,2.2402]
[1717453561606,2.2396,165.21,165.16,13.5887]
[1717453561783,27.5195,165.22,165.16,13.5887]
[1717453561990,27.5195,165.22,165.17,8.3085]
[1717453562379,7.5196,165.21,165.17,6.0685]
[1717453565013,5.28,165.18,165.13,17.82984738]
[1717453565215,5.28,165.18,165.14,2.2404]
[1717453565535,5.28,165.18,165.14,8.7402]
[1717453566787,5.28,165.18,165.14,6.4998]
[1717453568413,5.28,165.18,165.14,8.7402]
[1717453568609,5.28,165.18,165.15,6.4941]
[1717453568904,7.5199,165.19,165.15,6.4941]
[1717453569620,5.28,165.19,165.15,8.7344]
[1717453569821,5.28,165.19,165.15,6.4941]
[1717453570112,7.5198,165.19,165.15,6.4941]
[1717453571844,2.2398,165.19,165.15,6.4941]
[1717453572013,7.5198,165.19,165.15,6.4941]
[1717453572742,5.28,165.18,165.15,6.4941]
[1717453572909,5.28,165.18,165.14,2.2404]
[1717453573428,5.28,165.17,165.13,2.4105]
[1717453574014,5.28,165.17,165.13,8.4123]
[1717453574413,5.28,165.17,165.14,2.2404]
[1717453574615,5.28,165.18,165.14,2.2404]
[1717453575440,5.28,165.18,165.15,2.2403]
[1717453575741,5.28,165.19,165.14,8.5631]
[1717453575914,5.28,165.19,165.15,0.17]
[1717453578440,5.28,165.18,165.15,0.17]
[1717453580841,5.28,165.18,165.13,2.2405]
[1717453581020,5.28,165.17,165.12,8.8365]
[1717453581226,5.28,165.16,165.12,8.6665]
[1717453583419,2.2401,165.17,165.12,8.6665]
[1717453583727,5.28,165.16,165.12,8.6665]
[1717453584030,2.2401,165.17,165.12,8.6665]
[1717453584223,5.28,165.17,165.12,8.6665]
[1717453584435,5.28,165.17,165.13,2.2406]
[1717453585436,5.28,165.17,165.13,8.8644]
[1717453586625,7.52,165.18,165.13,8.8644]
[1717453586827,2.24,165.18,165.14,6.1579]
[1717453587617,22.24,165.18,165.14,6.1579]
[1717453588240,20.0,165.18,165.14,8.3983]
[1717453588414,2.2398,165.19,165.14,8.3983]
[1717453588617,7.5198,165.19,165.15,0.17]
[1717453588818,20.0,165.18,165.15,0.17]
[1717453589037,20.0,165.18,165.15,6.3279]
[1717453589244,7.5198,165.19,165.15,6.3279]
[1717453589648,20.0,165.18,165.15,6.3279]
[1717453592848,13.4369,165.22,165.15,6.3279]
[1717453592849,2.2398,165.2,165.15,13.8482]
[1717453593348,7.5196,165.21,165.16,8.5394]
[1717453593545,20.0,165.2,165.16,8.5394]
[1717453593733,22.2397,165.2,165.16,8.5394]
[1717453594227,20.0,165.2,165.16,8.5394]
[1717453594433,2.2396,165.21,165.16,8.5394]
[1717453594633,7.5196,165.21,165.16,8.5394]
[1717453595049,20.0,165.2,165.16,8.5394]
[1717453595553,22.2397,165.2,165.16,6.2992]
[1717453598137,22.2397,165.2,165.17,0.17]
[1717453598737,22.2397,165.2,165.17,6.6385]
[1717453599043,2.2395,165.22,165.18,6.4685]
[1717453599235,2.2395,165.22,165.19,6.4685]
[1717453599743,22.2395,165.22,165.19,6.4685]
[1717453600839,2.2395,165.22,165.19,6.4685]
[1717453604037,22.2395,165.22,165.19,6.4685]
[1717453604354,2.2395,165.22,165.19,6.4685]
[1717453605055,22.2395,165.22,165.19,6.4685]
[1717453607240,2.2395,165.22,165.19,6.4685]
[1717453608732,22.2395,165.22,165.19,6.4685]
[1717453609159,2.2393,165.23,165.19,22.6419]
[1717453609359,2.2392,165.24,165.2,0.17]
[1717453609665,2.2391,165.24,165.21,6.099]
[1717453610367,2.2391,165.24,165.21,13.196229]
[1717453610542,2.2391,165.24,165.21,7.916229]
[1717453613868,2.2391,165.24,165.22,6.099]
[1717453614045,2.239,165.25,165.22,6.099]
[1717453617561,2.2391,165.24,165.2,11.9536]
[1717453617755,2.2391,165.24,165.21,0.17]
[1717453619058,2.239,165.25,165.22,22.3249]
[1717453619387,5.28,165.3,165.24,5.28]
[1717453619584,5.28,165.3,165.23,43.1927]
[1717453619585,2.2382,165.31,165.25,0.34]
[1717453619865,2.2382,165.31,165.27,6.3026]
[1717453620069,2.2383,165.3,165.27,6.3026]
[1717453620273,2.2385,165.29,165.26,0.17]
[1717453620440,7.5184,165.3,165.25,2.409]
[1717453620636,2.2384,165.29,165.25,0.17]
[1717453620862,7.5184,165.29,165.25,0.17]
[1717453621451,6.1472,165.32,165.18,6.2838]
[1717453621656,7.5192,165.24,165.19,2.2397]
[1717453622074,7.5192,165.24,165.18,11.5638]
[1717453622075,5.28,165.24,165.2,2.2396]
[1717453622488,5.28,165.24,165.19,2.2397]
[1717453622779,5.28,165.24,165.18,5.28]
[1717453622780,5.28,165.24,165.2,2.2396]
[1717453623089,7.5191,165.24,165.19,2.2398]
[1717453623748,5.28,165.23,165.19,2.2398]
[1717453623979,2.2391,165.24,165.19,2.2398]
[1717453624152,5.28,165.22,165.18,2.4099]
[1717453624360,5.28,165.22,165.19,0.17]
[1717453626199,5.28,165.21,165.18,2.2399]
[1717453626769,5.28,165.22,165.18,2.2399]
[1717453628876,2.2393,165.23,165.18,2.2399]
[1717453629187,5.28,165.21,165.17,2.41]
[1717453629386,2.2393,165.23,165.17,2.41]
[1717453629572,2.2393,165.23,165.18,2.2399]
[1717453629771,5.28,165.22,165.18,2.2399]
[1717453630178,2.2393,165.23,165.18,2.2399]
[1717453630474,5.28,165.22,165.18,2.2399]
[1717453631775,2.2391,165.24,165.19,2.2398]
[1717453632088,7.5191,165.24,165.19,2.2398]
[1717453632261,25.28,165.23,165.19,2.2398]
[1717453633075,20.0,165.23,165.19,2.2398]
[1717453633379,5.28,165.23,165.19,2.2398]
[1717453633579,5.28,165.23,165.17,5.45]
[1717453633580,5.28,165.23,165.18,8.6184]
[1717453633882,5.28,165.23,165.19,0.17]
[1717453634192,2.2391,165.24,165.19,0.17]
[1717453634379,5.28,165.23,165.19,0.17]
[1717453634971,2.2391,165.24,165.19,0.17]
[1717453635296,5.28,165.23,165.19,0.17]
[1717453635775,2.2391,165.24,165.19,0.34]
[1717453635976,7.5191,165.24,165.19,8.9583]
[1717453636181,20.0,165.23,165.19,8.9583]
[1717453636568,20.0,165.23,165.19,6.7185]
[1717453637903,2.239,165.25,165.19,14.2382]
[1717453638073,7.519,165.25,165.19,11.9985]
[1717453638394,7.519,165.25,165.2,2.2396]
[1717453638601,7.519,165.25,165.21,0.17]
[1717453639306,2.239,165.25,165.22,6.3785]
[1717453639522,2.2389,165.26,165.23,2.5898465]
[1717453639685,2.2387,165.28,165.23,6.3785]
[1717453639888,5.28,165.28,165.24,2.41957441]
[1717453640114,5.28,165.27,165.24,2.41957441]
[1717453640478,7.5187,165.27,165.24,2.41957441]
[1717453641320,7.5187,165.27,165.23,6.3785]
[1717453641488,7.5187,165.27,165.24,0.17]
[1717453641687,2.2387,165.27,165.24,0.17]
[1717453642116,7.5187,165.27,165.24,0.17]
[1717453642312,2.2387,165.27,165.24,0.17]
[1717453642526,2.2387,165.28,165.24,6.7185]
[1717453642685,7.5187,165.28,165.24,6.7185]
[1717453643618,20.0,165.27,165.24,6.7185]
[1717453645395,22.2387,165.27,165.24,6.7185]
[1717453646936,2.2385,165.29,165.25,6.4785]
[1717453647112,2.2385,165.29,165.26,6.8185]
[1717453647310,2.2385,165.29,165.26,6.6485]
[1717453647510,27.5185,165.29,165.26,0.17]
[1717453647727,27.5185,165.29,165.25,0.17]
[1717453647935,27.5185,165.29,165.25,0.34]
[1717453650128,22.2385,165.29,165.25,0.34]
[1717453653324,4.4757,165.34,165.25,5.62]
[1717453653517,2.2383,165.31,165.26,5.28]
[1717453653717,22.2383,165.31,165.27,0.17]
[1717453654645,22.2383,165.31,165.27,1.69516274]
[1717453655135,22.2383,165.31,165.27,8.13466274]
[1717453656136,2.2383,165.3,165.27,8.13466274]
[1717453658223,2.238,165.32,165.27,14.1282]
[1717453658423,2.238,165.32,165.28,1.52642066]
[1717453658632,22.238,165.32,165.28,1.52642066]
[1717453659356,2.2382,165.31,165.28,1.52642066]
[1717453659564,25.28,165.32,165.28,1.52642066]
[1717453659850,2.2385,165.29,165.27,0.17]
[1717453660140,7.5183,165.3,165.27,0.17]
[1717453660453,5.28,165.3,165.26,0.34]
[1717453660749,5.28,165.3,165.26,2.5788]
[1717453661045,2.2382,165.31,165.26,2.5788]
[1717453661252,7.5182,165.31,165.26,2.5788]
[1717453663831,7.5182,165.31,165.26,9.0634]
[1717453664047,2.2381,165.32,165.26,9.0634]
[1717453664248,5.28,165.31,165.26,9.0634]
[1717453664948,2.2381,165.32,165.26,9.0634]
[1717453665150,5.28,165.31,165.26,9.0634]
[1717453668159,5.28,165.31,165.27,2.2387]
[1717453668542,5.28,165.3,165.28,0.17]
[1717453668752,5.28,165.31,165.28,0.17]
[1717453670431,2.2381,165.32,165.28,0.17]
[1717453670685,5.28,165.31,165.28,0.17]
[1717453671772,22.2379,165.33,165.28,6.9409]
[1717453671933,7.5181,165.32,165.28,6.9409]
[1717453673443,5.28,165.31,165.28,6.9409]
[1717453674062,2.2381,165.32,165.28,6.9409]
[1717453674246,5.28,165.31,165.28,6.9409]
[1717453675736,5.28,165.31,165.28,0.34]
[1717453676230,5.28,165.3,165.27,0.34]
[1717453676630,5.28,165.29,165.23,21.8507]
[1717453676831,2.2383,165.3,165.23,15.5262]
[1717453677053,2.2382,165.31,165.26,2.2388]
[1717453677278,5.28,165.3,165.25,2.2389]
[1717453677505,2.2383,165.3,165.25,7.5189]
[1717453677782,27.5183,165.3,165.25,8.5634]
[1717453678280,27.5183,165.3,165.26,0.34]
[1717453678480,25.28,165.3,165.26,6.6645]
[1717453678958,27.5183,165.3,165.26,6.6645]
[1717453680768,22.2383,165.3,165.26,6.6645]
[1717453680982,5.28,165.29,165.26,6.6645]
[1717453681864,5.28,165.28,165.26,0.34]
[1717453682170,5.28,165.27,165.25,0.17]
[1717453682479,5.28,165.27,165.24,2.2391]
[1717453682979,5.28,165.26,165.23,2.4092]
[1717453683195,2.2383,165.31,165.23,0.17]
[1717453683364,15.3051,165.35,165.25,2.2389]
[1717453683564,5.28,165.28,165.25,2.2389]
[1717453684166,4.4759,165.33,165.25,2.2389]
[1717453684460,5.28,165.28,165.24,2.409]
[1717453684663,5.28,165.28,165.24,6.4208]
[1717453684869,5.28,165.28,165.25,2.2389]
[1717453685687,5.28,165.28,165.24,8.6599]
[1717453686773,5.28,165.28,165.25,0.17]
[1717453688595,2.2384,165.3,165.25,0.17]
[1717453688796,5.28,165.28,165.25,0.17]
[1717453689677,5.28,165.28,165.25,2.409]
[1717453689869,5.28,165.28,165.26,0.17]
[1717453690465,5.28,165.28,165.25,0.34]
[1717453692093,2.2384,165.3,165.25,0.34]
[1717453692288,5.28,165.28,165.25,0.34]
[1717453693303,5.28,165.26,165.25,0.17]
[1717453693795,5.28,165.26,165.23,2.2392]
[1717453693974,5.28,165.26,165.24,0.17]
[1717453694480,5.28,165.25,165.24,0.17]
[1717453695603,5.28,165.25,165.23,2.2392]
[1717453695790,5.28,165.25,165.24,2.2391]
[1717453696170,5.28,165.26,165.25,2.239]
[1717453696370,5.28,165.26,165.25,2.409]
[1717453697093,5.28,165.26,165.25,0.17]
[1717453699611,5.28,165.26,165.24,2.239]
[1717453701084,2.2384,165.3,165.24,2.239]
[1717453701287,5.28,165.27,165.24,2.239]
[1717453701482,5.28,165.27,165.25,2.239]
[1717453702173,2.2385,165.29,165.24,2.2391]
[1717453702378,5.28,165.26,165.24,2.2391]
[1717453704609,2.2384,165.3,165.24,2.2391]
[1717453704909,5.28,165.26,165.24,2.2391]
[1717453705697,2.2384,165.3,165.25,2.239]
[1717453706005,2.2384,165.3,165.23,0.17]
[1717453706006,5.28,165.26,165.24,2.239]
[1717453710724,5.28,165.26,165.23,2.4092]
[1717453713911,5.28,165.26,165.24,2.2391]
[1717453714820,5.28,165.26,165.23,2.4092]
[1717453715310,5.28,165.25,165.23,2.4092]
[1717453716221,7.5191,165.24,165.19,2.2398]
[1717453716515,5.28,165.2,165.18,2.2399]
[1717453717021,5.28,165.2,165.19,2.2398]
[1717453717617,5.28,165.2,165.19,2.5798]
[1717453719621,5.28,165.2,165.19,0.34]
[1717453721218,2.2391,165.24,165.19,0.34]
[1717453721399,5.28,165.21,165.19,2.5798]
[1717453722636,5.28,165.21,165.19,0.34]
[1717453722800,5.28,165.21,165.18,2.2399]
[1717453723201,5.28,165.21,165.19,2.2398]
[1717453725526,2.2391,165.25,165.19,2.2398]
[1717453725743,5.28,165.22,165.2,0.34]
[1717453728130,5.28,165.21,165.18,2.2399]
[1717453730033,5.28,165.21,165.19,2.2398]
[1717453730336,5.28,165.23,165.2,0.17]
[1717453730506,5.28,165.23,165.2,0.34]
[1717453731131,5.28,165.22,165.2,0.34]
[1717453731522,5.28,165.22,165.19,0.34]
[1717453732327,5.28,165.22,165.19,2.5798]
[1717453732735,2.239,165.25,165.19,2.5798]
[1717453733115,5.28,165.22,165.19,2.5798]
[1717453736728,5.28,165.22,165.19,0.34]
[1717453739459,2.2391,165.24,165.19,0.34]
[1717453739628,5.28,165.22,165.19,0.34]
[1717453739935,5.28,165.22,165.19,2.5797]
[1717453740843,2.239,165.25,165.19,2.5797]